fUSD/lending_fUSD_20240301
["ID","MTS","AMOUNT","RATE_DAILY","PERIOD"]
[315930049,1709287853157,-500.0,0.00022191,2]
[315930050,1709287853166,-572.73,0.00022191,2]
[315930051,1709287853176,-500.0,0.00022191,2]
[315930052,1709287853185,-500.0,0.00022191,2]
[315930053,1709287853196,-500.0,0.00022191,2]
[315930054,1709287853205,-500.0,0.00022191,2]
[315930055,1709287853215,-500.0,0.00022191,2]
[315930056,1709287853224,-557.06,0.00022191,2]
[315930057,1709287853233,-933.67,0.00022191,2]
[315930058,1709287853243,-500.0,0.00022191,2]
[315930059,1709287853252,-633.4,0.00022191,2]
[315930060,1709287853261,-500.0,0.00022191,2]
[315930061,1709287853271,-500.0,0.00022191,2]
[315930062,1709287853280,-500.0,0.00022191,2]
[315930063,1709287853290,-500.0,0.00022191,2]
[315930064,1709287853299,-577.68,0.00022191,2]
[315930065,1709287853307,-513.72231332,0.00022191,2]
[315930066,1709287853317,-151.0,0.00022191,7]
[315930067,1709287853326,-500.0,0.00022191,2]
[315930068,1709287853336,-500.0,0.00022191,2]
[315930069,1709287853345,-500.0,0.00022191,2]
[315930070,1709287853354,-683.34,0.00022191,2]
[315930071,1709287853364,-500.0,0.00022191,2]
[315930072,1709287853373,-870.3,0.00022191,2]
[315930073,1709287853383,-500.0,0.00022191,2]
[315930074,1709287853393,-500.0,0.00022191,2]
[315930075,1709287853402,-500.0,0.00022191,2]
[315930076,1709287853412,-500.0,0.00022191,2]
[315930077,1709287853421,-500.0,0.00022191,2]
[315930078,1709287853431,-500.0,0.00022191,2]
[315930079,1709287853440,-500.0,0.00022191,2]
[315930080,1709287853449,-500.0,0.00022191,2]
[315930081,1709287853459,-500.0,0.00022191,2]
[315930082,1709287853468,-500.0,0.00022191,2]
[315930083,1709287853478,-500.0,0.00022191,2]
[315930084,1709287853487,-1890.32,0.00022191,2]
[315930085,1709287853497,-500.0,0.00022191,2]
[315930086,1709287853507,-500.0,0.00022191,2]
[315930087,1709287853516,-14799.68,0.00022191,2]
[315930088,1709287853526,-500.0,0.00022191,2]
[315930089,1709287853536,-500.0,0.00022191,2]
[315930090,1709287853545,-500.0,0.00022191,2]
[315930091,1709287853555,-2574.68,0.00022191,2]
[315930092,1709287853564,-707.18,0.00022191,2]
[315930093,1709287853574,-500.0,0.00022191,2]
[315930094,1709287853584,-500.0,0.00022191,2]
[315930095,1709287853593,-500.0,0.00022191,2]
[315930096,1709287853602,-151.0,0.00022191,7]
[315930097,1709287853612,-500.0,0.00022191,2]
[315930098,1709287853622,-6871.67,0.00022191,2]
[315930099,1709287853631,-620.52,0.00022191,2]
[315930100,1709287853641,-1534.87,0.00022191,2]
[315930101,1709287853651,-1449.25,0.00022191,2]
[315930102,1709287853662,-1017.76,0.00022191,2]
[315930103,1709287853671,-2142.76,0.00022191,2]
[315930104,1709287853681,-500.0,0.00022191,2]
[315930105,1709287853692,-843.2,0.00022191,2]
[315930106,1709287853701,-2261.81,0.00022191,2]
[315930107,1709287853711,-500.0,0.00022191,2]
[315930108,1709287853721,-5229.13,0.00022191,2]
[315930109,1709287853731,-1230.47,0.00022191,2]
[315930110,1709287853740,-151.0,0.00022191,7]
[315930111,1709287853749,-565.75,0.00022191,2]
[315930112,1709287853759,-673.91,0.00022191,2]
[315930113,1709287853768,-500.0,0.00022191,2]
[315930114,1709287853778,-500.0,0.00022191,2]
[315930115,1709287853787,-2110.0,0.00022191,2]
[315930116,1709287853796,-848.33,0.00022191,2]
[315930117,1709287853805,-151.0,0.00022191,7]
[315930118,1709287853814,-500.0,0.00022191,2]
[315930119,1709287853823,-1001.98,0.00022191,2]
[315930120,1709287853833,-1479.88,0.00022191,2]
[315930121,1709287853843,-500.0,0.00022191,2]
[315930122,1709287853852,-754.39,0.00022191,2]
[315930123,1709287853862,-4328.82,0.00022191,2]
[315930124,1709287853870,-500.0,0.00022191,2]
[315930125,1709287853880,-717.86,0.00022191,2]
[315930126,1709287853889,-2539.99,0.00022191,2]
[315930127,1709287853898,-1423.51,0.00022191,2]
[315930128,1709287853907,-504.66352179,0.00022191,2]
[315930129,1709287853916,-500.0,0.00022191,2]
[315930130,1709287853926,-619.6,0.00022191,2]
[315930131,1709287853935,-566.93486393,0.00022191,2]
[315930132,1709287853944,-1326.56,0.00022191,2]
[315930133,1709287853953,-777.22,0.00022191,2]
[315930134,1709287853962,-500.0,0.00022191,2]
[315930135,1709287853971,-500.0,0.00022191,2]
[315930136,1709287853980,-1501.41,0.00022191,2]
[315930137,1709287853990,-949.51,0.00022191,2]
[315930138,1709287853999,-11144.14,0.00022191,2]
[315930139,1709287854008,-500.0,0.00022191,2]
[315930140,1709287854018,-520.7399053,0.00022191,2]
[315930141,1709287854027,-500.0,0.00022191,2]
[315930142,1709287854037,-317.43552959,0.00022191,2]
[315930143,1709287854046,-625.05,0.00022191,2]
[315930144,1709287854055,-808.51,0.00022191,2]
[315930145,1709287854065,-389.52371364,0.00022191,2]
[315930146,1709287854074,-500.0,0.00022191,2]
[315930147,1709287854083,-500.0,0.00022191,2]
[315930148,1709287854092,-5064.74,0.00022191,2]
[315930149,1709287854401,-500.0,0.00022191,2]
[315930150,1709287854410,-741.8214654,0.00022191,2]
[315930151,1709287854455,-737.58599998,0.00022191,2]
[315930152,1709287854472,-529.68253462,0.00022191,2]
[315930153,1709287854482,-561.75530347,0.00022191,2]
[315930154,1709287854495,-907.01469653,0.00022191,2]
[315930155,1709287854504,-500.0,0.00022191,2]
[315930156,1709287854514,-500.0,0.00022191,2]
[315930157,1709287854524,-31.70034094,0.00022191,2]
[315930158,1709287855113,-500.0,0.00021917,2]
[315930159,1709287855123,-468.29965906,0.00022191,2]
[315930160,1709287855133,-716.54,0.00022191,2]
[315930161,1709287855143,-338.63234522,0.00022191,2]
[315930162,1709287855158,-2224.05765478,0.00022191,2]
[315930163,1709287855168,-2146.49,0.00022191,2]
[315930164,1709287855177,-500.0,0.00022191,2]
[315930165,1709287855186,-583.06,0.00022191,2]
[315930166,1709287855198,-758.99234522,0.00022191,2]
[315930167,1709287855233,-468.33480015,0.00022191,2]
[315930168,1709287855500,-224.49277787,0.0002006,2]
[315930169,1709287855509,-1598.0,0.00020589,2]
[315930170,1709287855519,-500.0,0.00021917,2]
[315930171,1709287855529,-364.15285463,0.00022191,2]
[315930172,1709287855539,-500.0,0.00022191,2]
[315930173,1709287855549,-1434.74,0.00022191,2]
[315930174,1709287855559,-532.18,0.00022191,2]
[315930175,1709287855569,-845.02,0.00022191,2]
[315930176,1709287855578,-226.98543333,0.00022191,2]
[315930178,1709288088963,-1050.5593775,0.00019302,2]
[315930179,1709288088990,-2746.6416989,0.00019303,2]
[315930180,1709288089017,-852.34,0.00019304,2]
[315930181,1709288089042,-500.0,0.00020175,2]
[315930182,1709288089067,-150.0,0.00020175,2]
[315930183,1709288089096,-250.0,0.00020741,2]
[315930184,1709288089122,-188.79,0.00020854,2]
[315930185,1709288089147,-1211.2156,0.00020917,2]
[315930186,1709288089172,-847.5276,0.00020917,2]
[315930187,1709288089199,-92202.9257236,0.00020968,2]
[315930188,1709288089944,-100000.0,0.00020968,2]
[315930189,1709288199640,-349.61705236,0.00019968,2]
[315930190,1709288199664,-1050.5593775,0.00020915,2]
[315930191,1709288199698,-2438.87,0.00020916,2]
[315930192,1709288199721,-178.36,0.00020944,2]
[315930193,1709288199744,-152.0,0.00020954,2]
[315930194,1709288199774,-7797.0742764,0.00020968,2]
[315930195,1709288199797,-657.33610934,0.00020968,2]
[315930196,1709288199820,-737.6,0.00021,2]
[315930197,1709288199843,-711.390726,0.00021,2]
[315930198,1709288199866,-150.0,0.00021045,2]
[315930199,1709288200119,-250.0,0.00021046,2]
[315930200,1709288200147,-798.15,0.00021096,2]
[315930201,1709288200175,-200.0,0.00021098,2]
[315930202,1709288200200,-259.56,0.00021117,10]
[315930203,1709288200224,-250.0,0.00021258,2]
[315930204,1709288200249,-23900.0,0.00021375,2]
[315930205,1709288200272,-1232.81902432,0.00021439,6]
[315930206,1709288200298,-1232.81902432,0.00021441,6]
[315930207,1709288200322,-30381.0944853,0.00021466,6]
[315930208,1709288200345,-27272.74992446,0.00021469,6]
[315930209,1709288200614,-3108.34456084,0.00021469,6]
[315930210,1709288200639,-1232.81902432,0.00021476,6]
[315930211,1709288200664,-30381.0944853,0.00021479,6]
[315930212,1709288200691,-30381.0944853,0.00021491,6]
[315930213,1709288200714,-1232.81902432,0.00021499,6]
[315930214,1709288200737,-852.34,0.00021568,2]
[315930215,1709288200759,-365.64633018,0.000216,2]
[315930216,1709288200782,-207.0,0.00021613,2]
[315930217,1709288200805,-32238.84208974,0.00021781,7]
[315930218,1709288201669,-100000.0,0.00021781,7]
[315930222,1709289034054,-1050.5593775,0.00018587,2]
[315930223,1709289034063,-482.4837625,0.00018588,2]
[315930224,1709289034074,-347.0062375,0.00018588,2]
[315930225,1709289034083,-163.59770054,0.00020359,2]
[315930226,1709289034095,-43.10229946,0.00020359,2]
[315930227,1709289034103,-612.22801672,0.00020364,2]
[315930228,1709289034112,-231.39667301,0.00020365,2]
[315930229,1709289034128,-18.60332699,0.00020365,2]
[315930230,1709289034137,-1625.91,0.00020419,2]
[315930231,1709289034146,-590.08,0.00020481,2]
[315930232,1709289034155,-250.0,0.00020547,2]
[315930233,1709289034166,-500.0,0.00020577,2]
[315930234,1709289034175,-158.6,0.00020646,2]
[315930235,1709289034184,-179.60165699,0.00020724,2]
[315930236,1709289034194,-250.0,0.00020778,2]
[315930237,1709289034203,-829.49,0.00020852,2]
[315930238,1709289034212,-150.0,0.0002088,2]
[315930239,1709289034221,-1152.58338467,0.00020881,2]
[315930240,1709289034236,-10240.55461319,0.00020881,2]
[315930241,1709289034286,-12506.86200214,0.00020881,2]
[315930242,1709289034295,-162.37494831,0.000209,2]
[315930243,1709289034431,-180.0,0.00020926,2]
[315930244,1709289034440,-409.92,0.00020936,2]
[315930245,1709289034449,-711.390726,0.00021,2]
[315930246,1709289034458,-797.39,0.00021096,2]
[315930247,1709289034467,-233.6,0.0002118,10]
[315930248,1709289034477,-365.64633018,0.000216,2]
[315930249,1709289034486,-407.37,0.00021671,2]
[315930250,1709289034495,-407.37,0.00021671,2]
[315930251,1709289034504,-407.37,0.00021671,2]
[315930252,1709289034513,-407.37,0.00021671,2]
[315930253,1709289034522,-407.37,0.00021671,2]
[315930254,1709289034533,-920.07,0.00021671,2]
[315930255,1709289034543,-200.04,0.00021671,2]
[315930256,1709289034551,-920.07,0.00021671,2]
[315930257,1709289034560,-920.07,0.00021671,2]
[315930258,1709289034571,-914.74736567,0.00021671,2]
[315930259,1709289034591,-5.32263433,0.00021671,2]
[315930260,1709289034600,-336.3525,0.00021681,2]
[315930261,1709289034610,-119.90138812,0.00021681,2]
[315930262,1709289034624,-750.93241188,0.00021681,2]
[315930263,1709289034633,-110.37071588,0.00021781,7]
[315930264,1709289034645,-673.27619946,0.00021781,7]
[315930265,1709289034659,-1083.91954998,0.00021781,7]
[315930266,1709289034704,-445.58659226,0.00021781,7]
[315930267,1709289034716,-432.38722525,0.00021781,7]
[315930268,1709289034727,-4517.39943239,0.00021781,7]
[315930269,1709289034739,-2183.74,0.00021781,7]
[315930270,1709289034758,-643.36390765,0.00021781,7]
[315930271,1709289034811,-2016.66672609,0.00021781,7]
[315930272,1709289034823,-312.22512691,0.00021781,7]
[315930273,1709289034835,-2360.35387545,0.00021781,7]
[315930274,1709289034847,-1402.31175324,0.00021781,7]
[315930275,1709289034874,-3027.36184677,0.00021781,7]
[315930281,1709289039288,-419.6410628,0.00021581,2]
[315930282,1709289039301,-4295.9824655,0.00021581,2]
[315930283,1709289039363,-156.05426185,0.00021581,2]
[315930284,1709289039373,-3926.28429267,0.00021781,7]
[315930285,1709289039382,-657.33610934,0.00021781,2]
[315930286,1709289039392,-200.0,0.00021789,2]
[315930287,1709289039402,-4871.67779014,0.000218,2]
[315930288,1709289039411,-188.665596,0.00021816,2]
[315930289,1709289039427,-202.77576272,0.00021816,2]
[315930290,1709289039438,-528.86613235,0.00021816,2]
[315930291,1709289039447,-53.85810493,0.00021817,2]
[315930292,1709289039477,-897.29657554,0.00021817,2]
[315930293,1709289039543,-48.84531953,0.00021817,2]
[315930294,1709289039555,-323.4366,0.00021817,2]
[315930295,1709289039566,-70633.0985,0.00021817,2]
[315930296,1709289039575,-1000.0,0.00021817,2]
[315930297,1709289039586,-20930.92865158,0.00021817,2]
[315930298,1709289039598,-1152.0,0.00021817,2]
[315930299,1709289039615,-12345.0623473,0.00021817,2]
[315930300,1709289039667,-3219.60990766,0.00021817,2]
[315930346,1709289040252,-1354.5342587,0.00021817,2]
[315930349,1709289040269,-740.83310956,0.00021817,2]
[315930351,1709289040283,-593.45,0.00021817,2]
[315930354,1709289040295,-1001.28334129,0.00021817,2]
[315930356,1709289040307,-2681.98083323,0.00021817,2]
[315930362,1709289040350,-978.21912246,0.00021817,2]
[315930364,1709289040363,-340.77276433,0.00021817,2]
[315930366,1709289040375,-355.12996767,0.00021817,2]
[315930368,1709289040388,-286.83677164,0.00021817,2]
[315930371,1709289040400,-1737.61932229,0.00021817,2]
[315930431,1709289040990,-521.67,0.00021817,2]
[315930434,1709289041004,-549.71719507,0.00021817,2]
[315930436,1709289041016,-5844.56740722,0.00021817,2]
[315930438,1709289041027,-4118.36444566,0.000219,2]
[315930440,1709289041037,-750.0,0.000219,2]
[315930442,1709289041047,-180.33056846,0.000219,2]
[315930445,1709289041057,-2000.0,0.000219,2]
[315930447,1709289041066,-453.47,0.00021907,2]
[315930449,1709289041080,-453.47,0.00021907,2]
[315930451,1709289041090,-8325.0,0.00021909,2]
[315930453,1709289041099,-155.13240375,0.00021915,2]
[315930455,1709289041109,-500.0,0.00021917,20]
[315930457,1709289041118,-590.31843293,0.00021917,2]
[315930459,1709289041128,-500.0,0.00021917,2]
[315930461,1709289041138,-500.0,0.00021917,2]
[315930463,1709289041147,-509.64429399,0.00021917,2]
[315930465,1709289041156,-500.0,0.00021917,2]
[315930467,1709289041168,-518.64264593,0.00021917,2]
[315930469,1709289041177,-500.0,0.00021917,2]
[315930471,1709289041186,-500.0,0.00021917,2]
[315930473,1709289041196,-500.0,0.00021917,2]
[315930476,1709289041206,-500.0,0.00021917,2]
[315930478,1709289041216,-500.0,0.00021917,2]
[315930480,1709289041226,-500.0,0.00021917,2]
[315930482,1709289041235,-500.0,0.00021917,2]
[315930484,1709289041244,-500.0,0.00021917,2]
[315930486,1709289041253,-500.0,0.00021917,2]
[315930488,1709289041263,-500.0,0.00021917,2]
[315930490,1709289041272,-500.0,0.00021917,2]
[315930492,1709289041282,-500.0,0.00021917,2]
[315930494,1709289041292,-500.0,0.00021917,2]
[315930496,1709289041301,-500.0,0.00021917,2]
[315930498,1709289041311,-500.0,0.00021917,2]
[315930500,1709289041320,-500.0,0.00021917,2]
[315930501,1709289041329,-500.0,0.00021917,2]
[315930502,1709289041339,-500.0,0.00021917,2]
[315930503,1709289041349,-611.946027,0.00021917,2]
[315930504,1709289041359,-500.0,0.00021917,2]
[315930505,1709289041368,-500.0,0.00021917,2]
[315930506,1709289041378,-500.0,0.00021917,2]
[315930507,1709289041388,-500.0,0.00021917,2]
[315930508,1709289041397,-500.0,0.00021917,2]
[315930509,1709289041407,-500.0,0.00021917,2]
[315930510,1709289041418,-500.0,0.00021917,2]
[315930511,1709289041428,-500.0,0.00021917,2]
[315930512,1709289041438,-500.0,0.00021917,2]
[315930513,1709289041448,-500.0,0.00021917,2]
[315930514,1709289041458,-500.0,0.00021917,2]
[315930515,1709289041468,-500.0,0.00021917,2]
[315930516,1709289041478,-500.0,0.00021917,2]
[315930517,1709289041489,-500.0,0.00021917,2]
[315930518,1709289041499,-637.36915321,0.00021917,2]
[315930519,1709289041508,-535.39,0.00021917,2]
[315930520,1709289041518,-510.09181854,0.00021917,2]
[315930521,1709289041528,-500.0,0.00021917,2]
[315930522,1709289041544,-500.0,0.00021917,2]
[315930523,1709289041554,-150.57154423,0.00021917,2]
[315930524,1709289041563,-500.0,0.00021917,2]
[315930525,1709289041577,-500.0,0.00021917,2]
[315930526,1709289041587,-500.0,0.00021917,2]
[315930527,1709289041597,-500.0,0.00021917,2]
[315930528,1709289041607,-500.0,0.00021917,2]
[315930529,1709289041618,-352.08729788,0.00021917,2]
[315930530,1709289041629,-500.0,0.00021917,2]
[315930531,1709289041639,-500.0,0.00021917,2]
[315930532,1709289041649,-500.0,0.00021917,2]
[315930533,1709289041659,-503.7520863,0.00021917,2]
[315930534,1709289041670,-500.0,0.00021917,2]
[315930535,1709289041681,-500.0,0.00021917,2]
[315930536,1709289041690,-550.95,0.00021917,2]
[315930537,1709289041701,-500.0,0.00021917,2]
[315930538,1709289041711,-500.0,0.00021917,2]
[315930539,1709289041721,-500.0,0.00021917,2]
[315930540,1709289041731,-500.0,0.00021917,2]
[315930541,1709289041742,-500.0,0.00021917,2]
[315930542,1709289041752,-519.76470652,0.00021917,2]
[315930543,1709289041762,-500.0,0.00021917,2]
[315930544,1709289041772,-500.0,0.00021917,2]
[315930545,1709289041781,-500.0,0.00021917,2]
[315930546,1709289041791,-500.0,0.00021917,2]
[315930547,1709289041801,-500.0,0.00021917,2]
[315930548,1709289041811,-500.0,0.00021917,2]
[315930549,1709289041821,-500.0,0.00021917,2]
[315930550,1709289041833,-500.0,0.00021917,2]
[315930551,1709289041848,-500.0,0.00021917,2]
[315930552,1709289041866,-500.0,0.00021917,2]
[315930553,1709289041876,-500.0,0.00021917,2]
[315930554,1709289041891,-500.0,0.00021917,2]
[315930555,1709289041901,-500.0,0.00021917,2]
[315930556,1709289041911,-500.0,0.00021917,2]
[315930557,1709289041925,-518.75725828,0.00021917,2]
[315930558,1709289041935,-500.0,0.00021917,2]
[315930559,1709289041945,-500.0,0.00021917,2]
[315930560,1709289041955,-500.0,0.00021917,2]
[315930561,1709289041966,-514.42231867,0.00021917,2]
[315930562,1709289041976,-500.0,0.00021917,2]
[315930563,1709289041986,-500.0,0.00021917,2]
[315930564,1709289041996,-500.0,0.00021917,2]
[315930565,1709289042006,-500.0,0.00021917,2]
[315930566,1709289042015,-500.0,0.00021917,2]
[315930567,1709289042025,-500.0,0.00021917,2]
[315930568,1709289042035,-500.0,0.00021917,2]
[315930569,1709289042045,-310.17165893,0.00021917,2]
[315930570,1709289042054,-514.23,0.00021917,2]
[315930571,1709289042064,-500.0,0.00021917,2]
[315930572,1709289042073,-500.0,0.00021917,2]
[315930573,1709289042083,-500.0,0.00021917,2]
[315930574,1709289042093,-1186.16,0.00021917,2]
[315930575,1709289042103,-500.0,0.00021917,2]
[315930576,1709289042112,-500.0,0.00021917,2]
[315930577,1709289042122,-618.1,0.00021917,2]
[315930578,1709289042135,-500.0,0.00021917,2]
[315930579,1709289042145,-500.0,0.00021917,2]
[315930580,1709289042156,-500.0,0.00021917,2]
[315930581,1709289042167,-701.08,0.00021917,2]
[315930582,1709289042177,-500.0,0.00021917,2]
[315930583,1709289042339,-500.0,0.00021917,2]
[315930584,1709289042348,-500.0,0.00021917,2]
[315930585,1709289042358,-500.0,0.00021917,2]
[315930586,1709289042367,-514.06536129,0.00021917,2]
[315930587,1709289042375,-500.0,0.00021917,2]
[315930588,1709289042384,-500.0,0.00021917,2]
[315930589,1709289042396,-500.0,0.00021917,2]
[315930590,1709289042406,-500.0,0.00021917,2]
[315930591,1709289042416,-791.83,0.00021917,2]
[315930592,1709289042426,-500.0,0.00021917,2]
[315930593,1709289042435,-925.2,0.00021917,2]
[315930594,1709289042444,-500.0,0.00021917,2]
[315930595,1709289042454,-983.45,0.00021917,2]
[315930596,1709289042463,-417.17,0.00021917,2]
[315930597,1709289042473,-500.0,0.00021917,2]
[315930598,1709289042483,-500.0,0.00021917,2]
[315930599,1709289042492,-580.61,0.00021917,2]
[315930600,1709289042501,-500.0,0.00021917,2]
[315930601,1709289042511,-500.0,0.00021917,2]
[315930602,1709289042520,-500.0,0.00021917,2]
[315930603,1709289042530,-500.0,0.00021917,2]
[315930604,1709289042539,-500.0,0.00021917,2]
[315930605,1709289042552,-995.6,0.00021917,2]
[315930607,1709289042561,-784.24,0.00021917,2]
[315930608,1709289042571,-500.0,0.00021917,2]
[315930609,1709289042581,-500.0,0.00021917,2]
[315930610,1709289042591,-500.0,0.00021917,2]
[315930611,1709289042600,-500.0,0.00021917,2]
[315930613,1709289042610,-500.0,0.00021917,2]
[315930614,1709289042619,-518.83600434,0.00021917,2]
[315930615,1709289042640,-500.0,0.00021917,2]
[315930616,1709289042650,-500.0,0.00021917,2]
[315930617,1709289042659,-500.0,0.00021917,2]
[315930618,1709289042670,-500.0,0.00021917,2]
[315930619,1709289042680,-500.0,0.00021917,2]
[315930620,1709289042690,-500.0,0.00021917,2]
[315930621,1709289042699,-500.0,0.00021917,2]
[315930622,1709289042708,-550.85524054,0.00021917,2]
[315930623,1709289042718,-582.9,0.00021917,2]
[315930624,1709289042727,-500.0,0.00021917,2]
[315930625,1709289042737,-500.0,0.00021917,2]
[315930626,1709289042746,-500.0,0.00021917,2]
[315930627,1709289042756,-379.65035263,0.00021917,2]
[315930628,1709289042765,-500.0,0.00021917,2]
[315930629,1709289042775,-500.0,0.00021917,2]
[315930630,1709289042785,-500.0,0.00021917,2]
[315930631,1709289042794,-500.0,0.00021917,2]
[315930632,1709289042803,-522.58,0.00021917,2]
[315930633,1709289042812,-551.48,0.00021917,2]
[315930634,1709289042822,-500.0,0.00021917,2]
[315930635,1709289042831,-500.0,0.00021917,2]
[315930636,1709289042841,-500.0,0.00021917,2]
[315930637,1709289042850,-500.0,0.00021917,2]
[315930638,1709289042859,-500.0,0.00021917,2]
[315930639,1709289042869,-500.0,0.00021917,2]
[315930640,1709289042878,-500.0,0.00021917,2]
[315930641,1709289042887,-500.0,0.00021917,2]
[315930642,1709289042896,-396.10063331,0.00021917,2]
[315930643,1709289042906,-1018.81,0.00021917,2]
[315930644,1709289042916,-500.0,0.00021917,2]
[315930645,1709289042926,-500.0,0.00021917,2]
[315930646,1709289042935,-500.0,0.00021917,2]
[315930647,1709289042944,-500.0,0.00021917,2]
[315930648,1709289042953,-500.0,0.00021917,2]
[315930649,1709289042963,-543.82,0.00021917,2]
[315930650,1709289042972,-736.03,0.00021917,2]
[315930651,1709289042981,-500.0,0.00021917,2]
[315930652,1709289042991,-500.0,0.00021917,2]
[315930653,1709289043001,-971.42,0.00021917,2]
[315930654,1709289043010,-500.0,0.00021917,2]
[315930655,1709289043019,-500.0,0.00021917,2]
[315930657,1709289043029,-612.13,0.00021917,2]
[315930659,1709289043038,-500.0,0.00021917,2]
[315930661,1709289043047,-500.0,0.00021917,2]
[315930663,1709289043056,-500.0,0.00021917,2]
[315930665,1709289043066,-500.0,0.00021917,2]
[315930667,1709289043075,-500.0,0.00021917,2]
[315930668,1709289043085,-518.84,0.00021917,2]
[315930670,1709289043094,-500.0,0.00021917,2]
[315930672,1709289043103,-500.0,0.00021917,2]
[315930674,1709289043113,-500.0,0.00021917,2]
[315930676,1709289043122,-500.0,0.00021917,2]
[315930677,1709289043131,-500.0,0.00021917,2]
[315930679,1709289043139,-500.0,0.00021917,2]
[315930681,1709289043149,-500.0,0.00021917,2]
[315930683,1709289043158,-500.0,0.00021917,2]
[315930685,1709289043169,-619.16,0.00021917,2]
[315930687,1709289043178,-504.29,0.00021917,2]
[315930689,1709289043186,-500.0,0.00021917,2]
[315930690,1709289043195,-500.0,0.00021917,2]
[315930692,1709289043204,-500.0,0.00021917,2]
[315930694,1709289043215,-500.0,0.00021917,2]
[315930696,1709289043224,-525.94,0.00021917,2]
[315930698,1709289043234,-500.0,0.00021917,2]
[315930700,1709289043243,-500.0,0.00021917,2]
[315930702,1709289043252,-728.28,0.00021917,2]
[315930704,1709289043261,-547.33,0.00021917,2]
[315930705,1709289043270,-500.0,0.00021917,2]
[315930707,1709289043279,-539.08551464,0.00021917,2]
[315930709,1709289043289,-500.0,0.00021917,2]
[315930711,1709289043298,-500.0,0.00021917,2]
[315930713,1709289043308,-500.0,0.00021917,2]
[315930715,1709289043317,-500.0,0.00021917,2]
[315930717,1709289043327,-593.02,0.00021917,2]
[315930719,1709289043335,-500.0,0.00021917,2]
[315930720,1709289043345,-776.32,0.00021917,2]
[315930722,1709289043354,-500.03910027,0.00021917,2]
[315930723,1709289043363,-500.0,0.00021917,2]
[315930724,1709289043372,-500.0,0.00021917,2]
[315930725,1709289043381,-500.0,0.00021917,2]
[315930726,1709289043390,-500.0,0.00021917,2]
[315930727,1709289043398,-500.0,0.00021917,2]
[315930728,1709289043407,-885.57,0.00021917,2]
[315930729,1709289043418,-500.0,0.00021917,2]
[315930730,1709289043427,-720.4,0.00021917,2]
[315930731,1709289043435,-500.0,0.00021917,2]
[315930732,1709289043444,-500.0,0.00021917,2]
[315930733,1709289043453,-500.0,0.00021917,2]
[315930734,1709289043462,-500.0,0.00021917,2]
[315930735,1709289043472,-500.0,0.00021917,2]
[315930736,1709289043482,-500.0,0.00021917,2]
[315930737,1709289043491,-500.0,0.00021917,2]
[315930738,1709289043501,-500.0,0.00021917,2]
[315930739,1709289043511,-173.37,0.00021917,2]
[315930740,1709289043520,-500.0,0.00021917,2]
[315930741,1709289043530,-500.0,0.00021917,2]
[315930742,1709289043540,-618.01,0.00021917,2]
[315930743,1709289043551,-500.0,0.00021917,2]
[315930744,1709289043560,-500.0,0.00021917,2]
[315930745,1709289043569,-500.0,0.00021917,2]
[315930746,1709289043581,-744.9,0.00021917,2]